[Event "Titled Tuesday Blitz April 05 Late 2022"]
[White "Svane, Frederik"]
[Black "Arabidze, Meri"]
[WhiteFideId "12923044"]
[BlackFideId "13604040"]
[WhiteElo "2459"]
[BlackElo "2335"]
[Result "1/2-1/2"]
[Round "02"]
[TimeControl "180+1"]
[Date "2022.04.05"]
[WhiteClock "0:00:08"]
[BlackClock "0:00:03"]

1. e4 {[%clk 0:03:00]}  c5 {[%clk 0:02:55]} 2. Nf3 {[%clk 0:03:01]}  e6 {[%clk 0:02:56]} 3. g3 {[%clk 0:02:57]}  Nf6 {[%clk 0:02:53]} 4. e5 {[%clk 0:02:56]}  Nd5 {[%clk 0:02:53]} 5. Bg2 {[%clk 0:02:54]}  Nc6 {[%clk 0:02:52]} 6. O-O {[%clk 0:02:54]}  d6 {[%clk 0:02:50]} 7. exd6 {[%clk 0:02:44]}  Bxd6 {[%clk 0:02:51]} 8. b3 {[%clk 0:02:44]}  O-O {[%clk 0:02:51]} 9. Bb2 {[%clk 0:02:45]}  f6 {[%clk 0:02:46]} 10. d4 {[%clk 0:02:43]}  cxd4 {[%clk 0:02:36]} 11. Nxd4 {[%clk 0:02:44]}  Nde7 {[%clk 0:02:35]} 12. Nxc6 {[%clk 0:02:36]}  Nxc6 {[%clk 0:02:34]} 13. c4 {[%clk 0:02:37]}  e5 {[%clk 0:02:28]} 14. Nc3 {[%clk 0:02:37]}  Bc5 {[%clk 0:02:23]} 15. Na4 {[%clk 0:02:32]}  Bd4 {[%clk 0:02:19]} 16. Bxc6 {[%clk 0:02:15]}  bxc6 {[%clk 0:02:18]} 17. Bxd4 {[%clk 0:02:16]}  exd4 {[%clk 0:02:18]} 18. Qd2 {[%clk 0:02:13]}  Qd6 {[%clk 0:01:59]} 19. Rad1 {[%clk 0:01:58]}  Rd8 {[%clk 0:01:58]} 20. Qf4 {[%clk 0:01:58]}  Qxf4 {[%clk 0:01:53]} 21. gxf4 {[%clk 0:01:59]}  Bf5 {[%clk 0:01:51]} 22. Rd2 {[%clk 0:01:57]}  d3 {[%clk 0:01:44]} 23. Kg2 {[%clk 0:01:57]}  Rd4 {[%clk 0:01:41]} 24. Kg3 {[%clk 0:01:57]}  Re8 {[%clk 0:01:38]} 25. Nc3 {[%clk 0:01:56]}  h5 {[%clk 0:01:31]} 26. h4 {[%clk 0:01:55]}  Kf7 {[%clk 0:01:29]} 27. Rfd1 {[%clk 0:01:48]}  Rg8 {[%clk 0:01:24]} 28. Rh1 {[%clk 0:01:31]}  g5 {[%clk 0:01:16]} 29. fxg5 {[%clk 0:01:31]}  fxg5 {[%clk 0:01:16]} 30. hxg5 {[%clk 0:01:32]}  Rxg5+ {[%clk 0:01:15]} 31. Kf3 {[%clk 0:01:33]}  c5 {[%clk 0:00:41]} 32. Ke3 {[%clk 0:01:21]}  Rg6 {[%clk 0:00:33]} 33. f3 {[%clk 0:01:16]}  h4 {[%clk 0:00:28]} 34. Nd5 {[%clk 0:00:49]}  h3 {[%clk 0:00:27]} 35. Nf4 {[%clk 0:00:46]}  Rh6 {[%clk 0:00:26]} 36. Rhh2 {[%clk 0:00:41]}  Rh8 {[%clk 0:00:26]} 37. Nd5 {[%clk 0:00:38]}  Re8+ {[%clk 0:00:22]} 38. Kf2 {[%clk 0:00:38]}  Rg8 {[%clk 0:00:20]} 39. Ne3 {[%clk 0:00:37]}  Be6 {[%clk 0:00:17]} 40. Nf1 {[%clk 0:00:16]}  a5 {[%clk 0:00:17]} 41. Ng3 {[%clk 0:00:16]}  a4 {[%clk 0:00:17]} 42. Ne4 {[%clk 0:00:17]}  axb3 {[%clk 0:00:16]} 43. axb3 {[%clk 0:00:17]}  Bf5 {[%clk 0:00:12]} 44. Nxc5 {[%clk 0:00:16]}  Rc8 {[%clk 0:00:12]} 45. Ne4 {[%clk 0:00:16]}  Rb8 {[%clk 0:00:07]} 46. Ke3 {[%clk 0:00:16]}  Rdd8 {[%clk 0:00:05]} 47. Rxd3 {[%clk 0:00:13]}  Rxd3+ {[%clk 0:00:04]} 48. Kxd3 {[%clk 0:00:14]}  Rxb3+ {[%clk 0:00:05]} 49. Kd4 {[%clk 0:00:14]}  Bxe4 {[%clk 0:00:04]} 50. fxe4 {[%clk 0:00:06]}  Ke6 {[%clk 0:00:03]} 51. Kc5 {[%clk 0:00:04]}  Ke5 {[%clk 0:00:03]} 52. Kc6 {[%clk 0:00:04]}  Kxe4 {[%clk 0:00:03]} 53. c5 {[%clk 0:00:05]}  Kf4 {[%clk 0:00:03]} 54. Kd7 {[%clk 0:00:05]}  Kg3 {[%clk 0:00:03]} 55. Rxh3+ {[%clk 0:00:05]}  Kxh3 {[%clk 0:00:03]} 56. c6 {[%clk 0:00:06]}  Rc3 {[%clk 0:00:03]} 57. c7 {[%clk 0:00:07]}  Rxc7+ {[%clk 0:00:03]} 58. Kxc7 {[%clk 0:00:08]} 1/2-1/2


[Site "https://www.chess.com"]

[Event "Titled Tuesday Blitz April 05 Late 2022"]
[White "Swicarz, Maciej"]
[Black "Constantinou, Peter"]
[WhiteFideId "1113585"]
[BlackFideId "413038"]
[WhiteElo "2538"]
[BlackElo "2342"]
[Result "0-1"]
[Round "02"]
[TimeControl "180+1"]
[Date "2022.04.06"]
[WhiteClock "0:00:57"]
[BlackClock "0:00:35"]

1. c4 {[%clk 0:03:00]}  e6 {[%clk 0:02:57]} 2. Nc3 {[%clk 0:03:00]}  d5 {[%clk 0:02:57]} 3. d4 {[%clk 0:02:58]}  Nf6 {[%clk 0:02:57]} 4. Bg5 {[%clk 0:02:57]}  dxc4 {[%clk 0:02:56]} 5. e3 {[%clk 0:02:54]}  a6 {[%clk 0:02:47]} 6. Bxc4 {[%clk 0:02:53]}  b5 {[%clk 0:02:47]} 7. Bb3 {[%clk 0:02:49]}  Bb7 {[%clk 0:02:47]} 8. Nf3 {[%clk 0:02:49]}  Nbd7 {[%clk 0:02:45]} 9. O-O {[%clk 0:02:47]}  Be7 {[%clk 0:02:44]} 10. Rc1 {[%clk 0:02:45]}  O-O {[%clk 0:02:43]} 11. Bxf6 {[%clk 0:02:43]}  Nxf6 {[%clk 0:02:38]} 12. a4 {[%clk 0:02:15]}  b4 {[%clk 0:02:35]} 13. Nb1 {[%clk 0:02:09]}  Rc8 {[%clk 0:02:34]} 14. Qe2 {[%clk 0:01:50]}  c5 {[%clk 0:02:33]} 15. dxc5 {[%clk 0:01:50]}  Bxc5 {[%clk 0:02:29]} 16. Rfd1 {[%clk 0:01:49]}  Qe7 {[%clk 0:02:29]} 17. Nbd2 {[%clk 0:01:43]}  Rfd8 {[%clk 0:01:44]} 18. Bc4 {[%clk 0:01:42]}  a5 {[%clk 0:01:41]} 19. Bb5 {[%clk 0:01:41]}  Bd6 {[%clk 0:01:22]} 20. Nc4 {[%clk 0:01:38]}  Bc7 {[%clk 0:01:23]} 21. Rxd8+ {[%clk 0:01:30]}  Rxd8 {[%clk 0:01:24]} 22. Rd1 {[%clk 0:01:28]}  g6 {[%clk 0:01:07]} 23. h3 {[%clk 0:01:27]}  Kg7 {[%clk 0:01:00]} 24. b3 {[%clk 0:01:26]}  Nd5 {[%clk 0:00:58]} 25. Qb2+ {[%clk 0:01:21]}  Nc3 {[%clk 0:00:58]} 26. Rxd8 {[%clk 0:01:20]}  Qxd8 {[%clk 0:00:59]} 27. Nd4 {[%clk 0:01:17]}  Qd5 {[%clk 0:00:56]} 28. f3 {[%clk 0:01:11]}  e5 {[%clk 0:00:54]} 29. Ne2 {[%clk 0:01:04]}  Qd3 {[%clk 0:00:35]} 30. Kf2 {[%clk 0:00:57]}  Nd1+ {[%clk 0:00:35]} 0-1


[Site "https://www.chess.com"]

[Event "Titled Tuesday Blitz April 05 Late 2022"]
[White "Szalay, Karoly"]
[Black "Mangialardo, Tiago Carvalho"]
[WhiteFideId "2600544"]
[BlackFideId "2130718"]
[WhiteElo "2462"]
[BlackElo "2057"]
[Result "1-0"]
[Round "02"]
[TimeControl "180+1"]
[Date "2022.04.06"]
[WhiteClock "0:00:11"]
[BlackClock "0:00:02"]

1. e4 {[%clk 0:03:00]}  e5 {[%clk 0:03:00]} 2. Nf3 {[%clk 0:03:01]}  Nc6 {[%clk 0:02:59]} 3. Nc3 {[%clk 0:03:01]}  Nf6 {[%clk 0:02:59]} 4. Bb5 {[%clk 0:03:00]}  d6 {[%clk 0:02:53]} 5. d4 {[%clk 0:02:59]}  exd4 {[%clk 0:02:51]} 6. Nxd4 {[%clk 0:03:00]}  Bd7 {[%clk 0:02:51]} 7. O-O {[%clk 0:03:00]}  Be7 {[%clk 0:02:51]} 8. Kh1 {[%clk 0:02:59]}  O-O {[%clk 0:02:51]} 9. f4 {[%clk 0:02:58]}  a6 {[%clk 0:02:51]} 10. Bxc6 {[%clk 0:02:57]}  Bxc6 {[%clk 0:02:52]} 11. Qd3 {[%clk 0:02:57]}  Re8 {[%clk 0:02:47]} 12. b4 {[%clk 0:02:55]}  Bf8 {[%clk 0:02:37]} 13. Re1 {[%clk 0:02:54]}  Qd7 {[%clk 0:02:32]} 14. Bb2 {[%clk 0:02:35]}  Qg4 {[%clk 0:02:20]} 15. Qf3 {[%clk 0:02:00]}  Qg6 {[%clk 0:01:49]} 16. Nxc6 {[%clk 0:01:55]}  bxc6 {[%clk 0:01:48]} 17. Re3 {[%clk 0:01:54]}  Nd7 {[%clk 0:01:11]} 18. Rae1 {[%clk 0:01:37]}  Nb6 {[%clk 0:01:11]} 19. Qe2 {[%clk 0:01:32]}  Qf6 {[%clk 0:00:51]} 20. g3 {[%clk 0:01:10]}  Qd4 {[%clk 0:00:44]} 21. a3 {[%clk 0:00:34]}  Nc4 {[%clk 0:00:42]} 22. Rd3 {[%clk 0:00:33]}  Qf6 {[%clk 0:00:21]} 23. Ba1 {[%clk 0:00:17]}  a5 {[%clk 0:00:18]} 24. Rd4 {[%clk 0:00:14]}  Qxd4 {[%clk 0:00:16]} 25. Nd5 {[%clk 0:00:15]}  Nb2 {[%clk 0:00:05]} 26. Nxc7 {[%clk 0:00:12]}  Rec8 {[%clk 0:00:04]} 27. Nxa8 {[%clk 0:00:12]}  Rxa8 {[%clk 0:00:04]} 28. c3 {[%clk 0:00:12]}  Qxc3 {[%clk 0:00:04]} 29. Bxb2 {[%clk 0:00:12]}  Qb3 {[%clk 0:00:02]} 30. e5 {[%clk 0:00:12]}  axb4 {[%clk 0:00:02]} 31. axb4 {[%clk 0:00:12]}  Qxb4 {[%clk 0:00:02]} 32. exd6 {[%clk 0:00:12]}  Qxd6 {[%clk 0:00:02]} 33. Rd1 {[%clk 0:00:13]}  Qc5 {[%clk 0:00:02]} 34. Bd4 {[%clk 0:00:13]}  Qb5 {[%clk 0:00:02]} 35. Qe4 {[%clk 0:00:12]}  Qb7 {[%clk 0:00:02]} 36. Bc3 {[%clk 0:00:12]}  Rc8 {[%clk 0:00:03]} 37. Qf5 {[%clk 0:00:11]}  h6 {[%clk 0:00:02]} 38. Rd7 {[%clk 0:00:11]}  Qb8 {[%clk 0:00:02]} 39. Qxf7+ {[%clk 0:00:11]}  Kh8 {[%clk 0:00:02]} 40. Bxg7+ {[%clk 0:00:12]}  Kh7 {[%clk 0:00:02]} 41. Bxf8+ {[%clk 0:00:10]}  Kh8 {[%clk 0:00:02]} 42. Qg7# {[%clk 0:00:11]} 1-0


[Site "https://www.chess.com"]

[Event "Titled Tuesday Blitz April 05 Late 2022"]
[White "Taichman, Ori"]
[Black "Tang, Andrew"]
[WhiteFideId "2804069"]
[BlackFideId "2059630"]
[WhiteElo "2227"]
[BlackElo "2584"]
[Result "1/2-1/2"]
[Round "02"]
[TimeControl "180+1"]
[Date "2022.04.05"]
[WhiteClock "0:00:33"]
[BlackClock "0:00:14"]

1. e4 {[%clk 0:01:35]}  e5 {[%clk 0:02:53]} 2. d4 {[%clk 0:01:34]}  exd4 {[%clk 0:02:53]} 3. Qxd4 {[%clk 0:01:35]}  Nc6 {[%clk 0:02:54]} 4. Qe3 {[%clk 0:01:35]}  Nf6 {[%clk 0:02:36]} 5. Nc3 {[%clk 0:01:35]}  Bb4 {[%clk 0:02:37]} 6. Bd2 {[%clk 0:01:36]}  O-O {[%clk 0:02:38]} 7. O-O-O {[%clk 0:01:36]}  Re8 {[%clk 0:02:39]} 8. Qg3 {[%clk 0:01:37]}  Rxe4 {[%clk 0:02:34]} 9. a3 {[%clk 0:01:37]}  Ba5 {[%clk 0:02:11]} 10. Be2 {[%clk 0:01:35]}  d6 {[%clk 0:01:37]} 11. Bh6 {[%clk 0:01:30]}  Qf8 {[%clk 0:01:03]} 12. Nxe4 {[%clk 0:01:24]}  Nxe4 {[%clk 0:01:04]} 13. Qe3 {[%clk 0:01:21]}  Bf5 {[%clk 0:01:03]} 14. Bf4 {[%clk 0:01:20]}  Bb6 {[%clk 0:01:04]} 15. Qb3 {[%clk 0:01:13]}  Nxf2 {[%clk 0:00:57]} 16. Nf3 {[%clk 0:01:13]}  Nxh1 {[%clk 0:00:57]} 17. Rxh1 {[%clk 0:01:12]}  Re8 {[%clk 0:00:58]} 18. Bb5 {[%clk 0:01:11]}  a6 {[%clk 0:00:55]} 19. Bxc6 {[%clk 0:01:11]}  bxc6 {[%clk 0:00:52]} 20. Bd2 {[%clk 0:01:06]}  Be4 {[%clk 0:00:38]} 21. Re1 {[%clk 0:01:02]}  h6 {[%clk 0:00:37]} 22. Qc4 {[%clk 0:00:59]}  Bxf3 {[%clk 0:00:32]} 23. gxf3 {[%clk 0:00:56]}  Rxe1+ {[%clk 0:00:32]} 24. Bxe1 {[%clk 0:00:57]}  Qe8 {[%clk 0:00:32]} 25. Bc3 {[%clk 0:00:47]}  Qe3+ {[%clk 0:00:28]} 26. Kb1 {[%clk 0:00:47]}  Qxf3 {[%clk 0:00:28]} 27. Qxa6 {[%clk 0:00:48]}  Qh1+ {[%clk 0:00:23]} 28. Ka2 {[%clk 0:00:47]}  Qxh2 {[%clk 0:00:23]} 29. a4 {[%clk 0:00:47]}  Qxc2 {[%clk 0:00:22]} 30. a5 {[%clk 0:00:47]}  Qa4+ {[%clk 0:00:18]} 31. Kb1 {[%clk 0:00:47]}  Bc5 {[%clk 0:00:17]} 32. Qc8+ {[%clk 0:00:44]}  Kh7 {[%clk 0:00:17]} 33. Qf5+ {[%clk 0:00:43]}  Kg8 {[%clk 0:00:14]} 34. Qc8+ {[%clk 0:00:41]}  Kh7 {[%clk 0:00:14]} 35. Qf5+ {[%clk 0:00:33]}  Kg8 {[%clk 0:00:14]} 36. Qc8+ {[%clk 0:00:33]} 1/2-1/2


[Site "https://www.chess.com"]

[Event "Titled Tuesday Blitz April 05 Late 2022"]
[White "Villegas, Pierre"]
[Black "Melikhov, Evgeny V."]
[WhiteFideId "654183"]
[BlackFideId "4122046"]
[WhiteElo "2534"]
[BlackElo "2330"]
[Result "1-0"]
[Round "02"]
[TimeControl "180+1"]
[Date "2022.04.06"]
[WhiteClock "0:01:04"]
[BlackClock "0:00:01"]

1. d4 {[%clk 0:03:00]}  Nf6 {[%clk 0:02:58]} 2. c4 {[%clk 0:03:01]}  e6 {[%clk 0:02:58]} 3. Nc3 {[%clk 0:03:01]}  Bb4 {[%clk 0:02:57]} 4. f3 {[%clk 0:02:59]}  d5 {[%clk 0:02:56]} 5. a3 {[%clk 0:02:58]}  Bxc3+ {[%clk 0:02:56]} 6. bxc3 {[%clk 0:02:59]}  c6 {[%clk 0:02:56]} 7. e4 {[%clk 0:02:34]}  dxe4 {[%clk 0:02:41]} 8. fxe4 {[%clk 0:02:35]}  Nxe4 {[%clk 0:02:22]} 9. Qg4 {[%clk 0:02:32]}  Nf6 {[%clk 0:02:03]} 10. Qxg7 {[%clk 0:02:29]}  Rg8 {[%clk 0:02:03]} 11. Qh6 {[%clk 0:02:30]}  Rg6 {[%clk 0:02:02]} 12. Qh4 {[%clk 0:02:21]}  Qa5 {[%clk 0:01:58]} 13. Bd2 {[%clk 0:02:20]}  Nbd7 {[%clk 0:01:32]} 14. Nf3 {[%clk 0:02:14]}  Rg4 {[%clk 0:00:52]} 15. Qh3 {[%clk 0:01:56]}  e5 {[%clk 0:00:37]} 16. Be2 {[%clk 0:01:52]}  Nb6 {[%clk 0:00:19]} 17. Qh6 {[%clk 0:01:38]}  Rg6 {[%clk 0:00:17]} 18. Qe3 {[%clk 0:01:38]}  Ng4 {[%clk 0:00:12]} 19. Qd3 {[%clk 0:01:35]}  exd4 {[%clk 0:00:09]} 20. Nxd4 {[%clk 0:01:28]}  Qh5 {[%clk 0:00:08]} 21. Qe4+ {[%clk 0:01:11]}  Kf8 {[%clk 0:00:07]} 22. O-O-O {[%clk 0:01:10]}  Bd7 {[%clk 0:00:07]} 23. h3 {[%clk 0:01:09]}  Nf6 {[%clk 0:00:03]} 24. Bxh5 {[%clk 0:01:05]}  Nxe4 {[%clk 0:00:01]} 25. Bxg6 {[%clk 0:01:06]}  hxg6 {[%clk 0:00:01]} 26. Bh6+ {[%clk 0:01:04]}  Kg8 {[%clk 0:00:01]} 27. Kc2 {[%clk 0:01:03]}  Nxc4 {[%clk 0:00:01]} 28. Rhe1 {[%clk 0:01:04]} 1-0


[Site "https://www.chess.com"]

[Event "Titled Tuesday Blitz April 05 Late 2022"]
[White "Ward, Ieuan C"]
[Black "Tanenbaum, Zachary"]
[WhiteFideId "406627"]
[BlackFideId "2060850"]
[WhiteElo "2307"]
[BlackElo "2720"]
[Result "0-1"]
[Round "02"]
[TimeControl "180+1"]
[Date "2022.04.06"]
[WhiteClock "0:02:03"]
[BlackClock "0:02:23"]

1. d4 {[%clk 0:03:00]}  d5 {[%clk 0:03:00]} 2. c4 {[%clk 0:02:59]}  Bf5 {[%clk 0:02:58]} 3. Nc3 {[%clk 0:02:57]}  e6 {[%clk 0:02:58]} 4. Nf3 {[%clk 0:02:52]}  c6 {[%clk 0:02:58]} 5. e3 {[%clk 0:02:49]}  Nd7 {[%clk 0:02:57]} 6. Be2 {[%clk 0:02:49]}  Ngf6 {[%clk 0:02:57]} 7. O-O {[%clk 0:02:48]}  Bd6 {[%clk 0:02:57]} 8. Nh4 {[%clk 0:02:46]}  Be4 {[%clk 0:02:56]} 9. cxd5 {[%clk 0:02:42]}  exd5 {[%clk 0:02:54]} 10. f3 {[%clk 0:02:40]}  Bg6 {[%clk 0:02:53]} 11. Re1 {[%clk 0:02:25]}  Ng4 {[%clk 0:02:44]} 12. Nxg6 {[%clk 0:02:19]}  Bxh2+ {[%clk 0:02:28]} 13. Kf1 {[%clk 0:02:18]}  hxg6 {[%clk 0:02:24]} 14. fxg4 {[%clk 0:02:16]}  Bg3 {[%clk 0:02:23]} 15. Kg1 {[%clk 0:02:03]}  Qh4 {[%clk 0:02:23]} 0-1


[Site "https://www.chess.com"]

[Event "Titled Tuesday Blitz April 05 Late 2022"]
[White "Weetik, Vjacheslav"]
[Black "Jarocka, Liwia"]
[WhiteFideId "4153472"]
[BlackFideId "21807558"]
[WhiteElo "2602"]
[BlackElo "2377"]
[Result "1-0"]
[Round "02"]
[TimeControl "180+1"]
[Date "2022.04.06"]
[WhiteClock "0:01:37"]
[BlackClock "0:01:33"]

1. d4 {[%clk 0:03:00]}  Nf6 {[%clk 0:02:59]} 2. c4 {[%clk 0:02:59]}  e6 {[%clk 0:02:59]} 3. Nf3 {[%clk 0:02:59]}  Bb4+ {[%clk 0:02:57]} 4. Nbd2 {[%clk 0:02:59]}  O-O {[%clk 0:02:55]} 5. e3 {[%clk 0:02:58]}  c5 {[%clk 0:02:49]} 6. dxc5 {[%clk 0:02:43]}  Bxc5 {[%clk 0:02:47]} 7. a3 {[%clk 0:02:41]}  d5 {[%clk 0:02:45]} 8. b4 {[%clk 0:02:41]}  Be7 {[%clk 0:02:45]} 9. Bb2 {[%clk 0:02:41]}  a5 {[%clk 0:02:44]} 10. b5 {[%clk 0:02:40]}  b6 {[%clk 0:02:41]} 11. Bd3 {[%clk 0:02:34]}  Bb7 {[%clk 0:02:40]} 12. O-O {[%clk 0:02:27]}  Nbd7 {[%clk 0:02:40]} 13. Rc1 {[%clk 0:02:25]}  Nc5 {[%clk 0:02:41]} 14. Bb1 {[%clk 0:02:25]}  Rc8 {[%clk 0:02:37]} 15. Ne5 {[%clk 0:02:19]}  Nfd7 {[%clk 0:02:17]} 16. Qh5 {[%clk 0:01:54]}  g6 {[%clk 0:02:04]} 17. Nxg6 {[%clk 0:01:52]}  Ne4 {[%clk 0:01:39]} 18. Nxe7+ {[%clk 0:01:40]}  Qxe7 {[%clk 0:01:33]} 19. Nxe4 {[%clk 0:01:37]} 1-0


[Site "https://www.chess.com"]

[Event "Titled Tuesday Blitz April 05 Late 2022"]
[White "Zherebtsova, Alexandra"]
[Black "Gledura, Benjamin"]
[WhiteFideId "24129518"]
[BlackFideId "712779"]
[WhiteElo "2384"]
[BlackElo "2758"]
[Result "0-1"]
[Round "02"]
[TimeControl "180+1"]
[Date "2022.04.06"]
[WhiteClock "0:00:06"]
[BlackClock "0:00:14"]

1. d4 {[%clk 0:02:46]}  Nf6 {[%clk 0:03:00]} 2. Nf3 {[%clk 0:02:46]}  d6 {[%clk 0:03:00]} 3. c4 {[%clk 0:02:47]}  Nbd7 {[%clk 0:03:00]} 4. Nc3 {[%clk 0:02:45]}  e5 {[%clk 0:03:00]} 5. Bg5 {[%clk 0:02:46]}  Be7 {[%clk 0:03:00]} 6. Qc2 {[%clk 0:02:45]}  O-O {[%clk 0:02:58]} 7. O-O-O {[%clk 0:02:46]}  h6 {[%clk 0:02:55]} 8. Bh4 {[%clk 0:02:44]}  exd4 {[%clk 0:02:36]} 9. Nxd4 {[%clk 0:02:43]}  Ne5 {[%clk 0:02:36]} 10. e3 {[%clk 0:02:37]}  a6 {[%clk 0:02:34]} 11. h3 {[%clk 0:02:22]}  b5 {[%clk 0:02:24]} 12. cxb5 {[%clk 0:02:16]}  axb5 {[%clk 0:02:24]} 13. Bxb5 {[%clk 0:02:15]}  c5 {[%clk 0:02:22]} 14. Nc6 {[%clk 0:02:13]}  Nxc6 {[%clk 0:02:17]} 15. Bxc6 {[%clk 0:02:13]}  Rb8 {[%clk 0:02:13]} 16. g4 {[%clk 0:01:51]}  Be6 {[%clk 0:02:02]} 17. f4 {[%clk 0:01:39]}  Qa5 {[%clk 0:01:56]} 18. g5 {[%clk 0:01:25]}  hxg5 {[%clk 0:01:48]} 19. fxg5 {[%clk 0:01:24]}  Nh7 {[%clk 0:01:42]} 20. Bd5 {[%clk 0:01:21]}  Bxg5 {[%clk 0:01:39]} 21. Bxg5 {[%clk 0:01:16]}  Nxg5 {[%clk 0:01:40]} 22. Rhg1 {[%clk 0:01:12]}  Nh7 {[%clk 0:01:33]} 23. Bxe6 {[%clk 0:01:02]}  fxe6 {[%clk 0:01:34]} 24. Rxd6 {[%clk 0:01:02]}  Rf7 {[%clk 0:01:27]} 25. Rxe6 {[%clk 0:00:57]}  Rfb7 {[%clk 0:01:25]} 26. Qg6 {[%clk 0:00:44]}  Nf8 {[%clk 0:01:23]} 27. Re8 {[%clk 0:00:37]}  Qb4 {[%clk 0:00:49]} 28. Nd1 {[%clk 0:00:19]}  Qc4+ {[%clk 0:00:43]} 29. Kb1 {[%clk 0:00:19]}  Rxe8 {[%clk 0:00:42]} 30. Qxe8 {[%clk 0:00:18]}  Qd3+ {[%clk 0:00:43]} 31. Kc1 {[%clk 0:00:16]}  Rf7 {[%clk 0:00:30]} 32. Qe5 {[%clk 0:00:16]}  Nd7 {[%clk 0:00:26]} 33. Qc3 {[%clk 0:00:16]}  Qe4 {[%clk 0:00:26]} 34. Nf2 {[%clk 0:00:14]}  Qe6 {[%clk 0:00:23]} 35. Ng4 {[%clk 0:00:14]}  Nb6 {[%clk 0:00:18]} 36. a3 {[%clk 0:00:12]}  Nd5 {[%clk 0:00:18]} 37. Qd2 {[%clk 0:00:11]}  c4 {[%clk 0:00:18]} 38. Kb1 {[%clk 0:00:11]}  c3 {[%clk 0:00:18]} 39. bxc3 {[%clk 0:00:12]}  Rb7+ {[%clk 0:00:15]} 40. Ka1 {[%clk 0:00:12]}  Qd6 {[%clk 0:00:15]} 41. Qa2 {[%clk 0:00:11]}  Kh8 {[%clk 0:00:15]} 42. Nf2 {[%clk 0:00:11]}  Nxc3 {[%clk 0:00:14]} 43. Qc2 {[%clk 0:00:10]}  Qxa3+ {[%clk 0:00:14]} 44. Qa2 {[%clk 0:00:06]}  Qxa2# {[%clk 0:00:14]} 0-1


[Site "https://www.chess.com"]

[Event "Titled Tuesday Blitz April 05 Late 2022"]
[White "Agasarov, Benik"]
[Black "Hakobyan, Aram"]
[WhiteFideId "13314823"]
[BlackFideId "13306677"]
[WhiteElo "2532"]
[BlackElo "2557"]
[Result "0-1"]
[Round "03"]
[TimeControl "180+1"]
[Date "2022.04.05"]
[WhiteClock "0:00:11"]
[BlackClock "0:00:07"]

1. d4 {[%clk 0:03:00]}  Nf6 {[%clk 0:03:00]} 2. c4 {[%clk 0:03:00]}  g6 {[%clk 0:03:00]} 3. Nc3 {[%clk 0:02:59]}  Bg7 {[%clk 0:03:01]} 4. e4 {[%clk 0:03:00]}  d6 {[%clk 0:03:02]} 5. Nf3 {[%clk 0:02:59]}  O-O {[%clk 0:03:01]} 6. h3 {[%clk 0:02:59]}  e5 {[%clk 0:03:01]} 7. d5 {[%clk 0:02:47]}  Nh5 {[%clk 0:03:01]} 8. g3 {[%clk 0:02:47]}  f5 {[%clk 0:02:59]} 9. exf5 {[%clk 0:02:44]}  gxf5 {[%clk 0:03:00]} 10. Nh4 {[%clk 0:02:45]}  Nf4 {[%clk 0:02:53]} 11. Ng2 {[%clk 0:02:37]}  Ng6 {[%clk 0:02:49]} 12. Be2 {[%clk 0:02:31]}  Na6 {[%clk 0:02:41]} 13. h4 {[%clk 0:02:19]}  e4 {[%clk 0:02:33]} 14. h5 {[%clk 0:02:18]}  Ne5 {[%clk 0:02:33]} 15. h6 {[%clk 0:02:18]}  Bf6 {[%clk 0:02:32]} 16. Be3 {[%clk 0:02:17]}  Nc5 {[%clk 0:02:23]} 17. Nf4 {[%clk 0:02:16]}  a5 {[%clk 0:02:21]} 18. Qc2 {[%clk 0:02:11]}  a4 {[%clk 0:02:17]} 19. O-O-O {[%clk 0:02:09]}  a3 {[%clk 0:02:15]} 20. b4 {[%clk 0:02:02]}  Na6 {[%clk 0:02:03]} 21. Qb3 {[%clk 0:01:57]}  Bd7 {[%clk 0:01:49]} 22. Nb5 {[%clk 0:01:32]}  Qe8 {[%clk 0:01:35]} 23. Nd4 {[%clk 0:01:31]}  Ba4 {[%clk 0:01:35]} 24. Qxa3 {[%clk 0:01:24]}  Bxd1 {[%clk 0:01:35]} 25. Rxd1 {[%clk 0:01:23]}  Nc5 {[%clk 0:01:35]} 26. Qc3 {[%clk 0:01:18]}  Ncd3+ {[%clk 0:01:30]} 27. Bxd3 {[%clk 0:01:18]}  exd3 {[%clk 0:01:29]} 28. Qb3 {[%clk 0:00:57]}  Qa4 {[%clk 0:01:28]} 29. Nde6 {[%clk 0:00:52]}  Qxb3 {[%clk 0:00:49]} 30. axb3 {[%clk 0:00:51]}  Ra1+ {[%clk 0:00:50]} 31. Kd2 {[%clk 0:00:51]}  Nf3+ {[%clk 0:00:43]} 32. Kxd3 {[%clk 0:00:51]}  Rxd1+ {[%clk 0:00:44]} 33. Ke2 {[%clk 0:00:52]}  Rb1 {[%clk 0:00:38]} 34. Kxf3 {[%clk 0:00:49]}  Rc8 {[%clk 0:00:35]} 35. Nh5 {[%clk 0:00:47]}  Be5 {[%clk 0:00:34]} 36. Bd4 {[%clk 0:00:41]}  Rxb3+ {[%clk 0:00:33]} 37. Kg2 {[%clk 0:00:42]}  Bxd4 {[%clk 0:00:29]} 38. Nxd4 {[%clk 0:00:43]}  Rxb4 {[%clk 0:00:29]} 39. Nxf5 {[%clk 0:00:40]}  Rf8 {[%clk 0:00:24]} 40. Ne3 {[%clk 0:00:35]}  b5 {[%clk 0:00:22]} 41. cxb5 {[%clk 0:00:34]}  Rxb5 {[%clk 0:00:23]} 42. g4 {[%clk 0:00:33]}  Rb2 {[%clk 0:00:19]} 43. Nf5 {[%clk 0:00:30]}  Rxf5 {[%clk 0:00:17]} 44. gxf5 {[%clk 0:00:30]}  Kf7 {[%clk 0:00:18]} 45. Kf3 {[%clk 0:00:29]}  Rb4 {[%clk 0:00:19]} 46. Ke3 {[%clk 0:00:26]}  Rh4 {[%clk 0:00:18]} 47. Nf4 {[%clk 0:00:26]}  Kf6 {[%clk 0:00:17]} 48. Ne6 {[%clk 0:00:26]}  Kxf5 {[%clk 0:00:15]} 49. Nxc7 {[%clk 0:00:26]}  Rxh6 {[%clk 0:00:15]} 50. f3 {[%clk 0:00:22]}  Ke5 {[%clk 0:00:14]} 51. f4+ {[%clk 0:00:22]}  Kf5 {[%clk 0:00:15]} 52. Nb5 {[%clk 0:00:20]}  Kg4 {[%clk 0:00:09]} 53. Ke4 {[%clk 0:00:18]}  Rf6 {[%clk 0:00:09]} 54. f5 {[%clk 0:00:18]}  h5 {[%clk 0:00:09]} 55. Nd4 {[%clk 0:00:18]}  h4 {[%clk 0:00:10]} 56. Nf3 {[%clk 0:00:13]}  Rxf5 {[%clk 0:00:06]} 57. Nh2+ {[%clk 0:00:12]}  Kg5 {[%clk 0:00:06]} 58. Nf3+ {[%clk 0:00:11]}  Rxf3 {[%clk 0:00:04]} 59. Kxf3 {[%clk 0:00:12]}  Kf5 {[%clk 0:00:05]} 60. Kg2 {[%clk 0:00:08]}  Ke4 {[%clk 0:00:05]} 61. Kh3 {[%clk 0:00:09]}  Kxd5 {[%clk 0:00:05]} 62. Kxh4 {[%clk 0:00:10]}  Ke4 {[%clk 0:00:06]} 63. Kg3 {[%clk 0:00:11]}  Ke3 {[%clk 0:00:07]} 0-1


[Site "https://www.chess.com"]